bitfinex/quotes_BTCUSD_20220111
["timestamp","ask_amount","ask_price","bid_price","bid_amount"]
[1641925991106,0.0006959,42659.0,42653.0,0.058603]
[1641925991606,0.0006959,42659.0,42656.0,0.0586]
[1641925991807,0.0006959,42659.0,42657.0,0.76666144]
[1641925992006,0.00315,42660.0,42658.0,0.826742]
[1641925992209,0.00315,42660.0,42659.0,0.423942]
[1641925992406,0.00384591,42660.0,42659.0,0.473942]
[1641925992661,0.00084591,42660.0,42659.0,0.473942]
[1641925993058,0.00136453,42670.0,42659.0,0.473942]
[1641925993656,0.26772104,42670.0,42661.0,0.058587]
[1641925993856,0.26772104,42670.0,42662.0,0.423942]
[1641925994057,0.26772104,42670.0,42662.0,0.473942]
[1641925994457,0.26772104,42670.0,42662.0,0.532529]
[1641925994657,0.00036343,42666.0,42662.0,0.85121679]
[1641925995056,0.00036343,42666.0,42662.0,0.532529]
[1641925995758,0.42446503,42669.0,42662.0,0.532529]
[1641925995958,0.00036343,42666.0,42662.0,0.532529]
[1641925996820,0.00136453,42670.0,42662.0,0.532529]
[1641925997020,0.00061952,42666.0,42662.0,0.532529]
[1641925997420,0.301,42665.0,42662.0,0.532529]
[1641925998324,0.296,42665.0,42662.0,0.532529]
[1641925998722,0.295,42665.0,42662.0,0.532529]
[1641925999223,0.295,42665.0,42662.0,0.482529]
[1641925999422,0.305,42665.0,42662.0,0.492529]
[1641925999722,0.305,42665.0,42662.0,0.433942]
[1641926000162,0.305,42665.0,42662.0,0.01]
[1641926000357,0.75,42663.0,42662.0,0.01]
[1641926000657,1.43321145,42663.0,42661.0,0.009381]
[1641926000959,0.220909,42662.0,42661.0,0.009381]
[1641926001356,0.246909,42662.0,42661.0,0.014381]
[1641926001957,0.946909,42662.0,42661.0,0.014381]
[1641926002658,0.920909,42662.0,42661.0,0.009381]
[1641926002858,1.27450241,42662.0,42661.0,0.009381]
[1641926003461,1.28350241,42662.0,42661.0,0.009381]
[1641926004514,2.63050241,42662.0,42661.0,0.009381]
[1641926004712,1.37450241,42662.0,42661.0,8.1e-05]
[1641926005511,1.38650241,42662.0,42661.0,8.1e-05]
[1641926005912,1.43370241,42662.0,42661.0,8.1e-05]
[1641926006311,1.43370241,42662.0,42650.0,0.00015]
[1641926006511,0.91712809,42653.0,42650.0,0.00015]
[1641926006715,0.29091529,42652.0,42650.0,0.00015]
[1641926006916,0.720909,42651.0,42649.0,0.00015]
[1641926007115,0.62782242,42650.0,42649.0,0.00015]
[1641926007414,0.84873142,42650.0,42649.0,0.00015]
[1641926008955,0.49873142,42650.0,42649.0,0.00015]
[1641926009155,0.46062365,42653.0,42649.0,0.00015]
[1641926009555,0.307,42650.0,42649.0,0.00015]
[1641926009954,0.007,42650.0,42649.0,0.058761]
[1641926010755,0.00706161,42653.0,42649.0,0.058761]
[1641926010955,0.00706161,42653.0,42649.0,0.048761]
[1641926011409,0.01106161,42653.0,42649.0,0.048761]
[1641926012507,0.01106161,42653.0,42649.0,0.08392462]
[1641926012707,0.00706161,42653.0,42649.0,0.00392462]
[1641926013509,0.01606161,42653.0,42649.0,0.00392462]
[1641926013914,0.009,42653.0,42649.0,0.00392462]
[1641926014711,0.29727594,42659.0,42649.0,0.03322742]
[1641926014914,0.29727594,42659.0,42649.0,0.00392462]
[1641926015553,0.30427594,42659.0,42649.0,0.00392462]
[1641926016754,0.38591163,42655.0,42649.0,0.00392462]
[1641926016955,0.38591163,42655.0,42648.0,0.12945789]
[1641926017155,0.38591163,42655.0,42648.0,0.07084489]
[1641926017355,0.00706038,42657.0,42648.0,0.07]
[1641926017554,0.004,42655.0,42648.0,0.07084487]
[1641926018156,0.004,42655.0,42651.0,0.058609]
[1641926018556,1.10067015,42652.0,42648.0,0.07]
[1641926018759,1.10067015,42652.0,42648.0,0.02084489]
[1641926019006,0.7,42652.0,42648.0,0.02084489]
[1641926019209,0.7,42652.0,42648.0,0.07945789]
[1641926019505,0.702,42652.0,42648.0,0.07945789]
[1641926019706,0.702,42652.0,42648.0,0.02]
[1641926019909,0.702,42652.0,42648.0,0.02084487]
[1641926020307,0.702,42652.0,42648.0,0.07945787]
[1641926020506,0.702,42652.0,42648.0,0.02084487]
[1641926020705,0.7,42652.0,42648.0,0.02084487]
[1641926020908,0.49811544,42651.0,42648.0,0.02]
[1641926021105,0.49811544,42651.0,42648.0,0.02084487]
[1641926021506,0.50411544,42651.0,42648.0,0.02084487]
[1641926022107,0.50411544,42651.0,42648.0,0.02]
[1641926022309,0.226909,42651.0,42648.0,0.02]
[1641926022856,0.006,42651.0,42648.0,0.02]
[1641926023256,0.3293791,42653.0,42648.0,0.02]
[1641926023457,0.016,42651.0,42649.0,0.058612]
[1641926024859,0.31172254,42655.0,42649.0,0.058612]
[1641926025058,0.220909,42654.0,42649.0,0.058612]
[1641926025459,0.36072254,42655.0,42649.0,0.058612]
[1641926025760,0.049,42655.0,42652.0,0.058605]
[1641926025960,0.049,42655.0,42653.0,0.0472]
[1641926026159,0.049,42655.0,42654.0,0.376742]
[1641926026410,0.049,42655.0,42654.0,0.473942]
[1641926026608,0.049,42655.0,42654.0,0.523942]
[1641926026808,0.5833,42665.0,42654.0,0.641137]
[1641926027210,0.00061937,42662.0,42654.0,0.641137]
[1641926027608,0.00061937,42662.0,42654.0,0.610137]
[1641926027809,0.24392326,42661.0,42654.0,0.710037]
[1641926028010,0.24392326,42661.0,42657.0,0.058595]
[1641926028611,0.00061942,42662.0,42657.0,0.058595]
[1641926029310,0.5833,42665.0,42657.0,0.058595]
[1641926029514,0.00061946,42662.0,42657.0,0.081595]
[1641926029912,0.00061946,42662.0,42657.0,0.131595]
[1641926030554,0.33373146,42667.0,42657.0,0.131595]
[1641926030754,0.00061946,42662.0,42657.0,0.108595]
[1641926030959,0.00061946,42662.0,42657.0,0.058595]
[1641926031454,0.00061946,42662.0,42657.0,0.104595]
[1641926031655,0.30610408,42664.0,42657.0,0.104595]
[1641926031955,0.00061946,42662.0,42657.0,0.154595]
[1641926032159,0.00061946,42662.0,42657.0,0.096]
[1641926032558,0.00061946,42662.0,42657.0,0.046]
[1641926032759,0.00061946,42662.0,42655.0,0.05]
[1641926032959,0.30610408,42664.0,42656.0,0.0472]
[1641926033161,0.00061946,42662.0,42656.0,0.0472]
[1641926033559,0.00061946,42662.0,42656.0,0.0642]
[1641926034006,0.30610408,42664.0,42656.0,0.0642]
[1641926034206,0.00061945,42662.0,42656.0,0.0642]
[1641926034812,0.00061945,42662.0,42657.0,0.0586]
[1641926035209,0.02599968,42663.0,42657.0,0.0586]
[1641926035411,0.00061946,42662.0,42655.0,0.167193]
[1641926035609,0.00061946,42662.0,42657.0,0.015]
[1641926036010,0.38496106,42662.0,42657.0,0.015]
[1641926036412,0.27822439,42661.0,42657.0,0.015]
[1641926036611,0.220909,42659.0,42657.0,0.015]
[1641926036811,0.220909,42659.0,42656.0,0.009382]
[1641926037664,0.27958958,42658.0,42656.0,0.023382]
[1641926037859,0.34834803,42660.0,42656.0,0.023382]
[1641926038557,0.220909,42659.0,42656.0,0.023382]
[1641926038859,0.00015,42660.0,42657.0,0.058601]
[1641926039657,0.00815,42660.0,42657.0,0.069601]
[1641926039859,0.00815,42660.0,42657.0,0.09889804]
[1641926040061,0.00815,42660.0,42658.0,0.117189]
[1641926040458,0.00815,42660.0,42658.0,0.167189]
[1641926040959,0.00015,42660.0,42659.0,0.058594]
[1641926041157,0.00015,42660.0,42659.0,0.3774842]
[1641926041418,0.00015,42660.0,42659.0,1.3014262]
[1641926041618,0.00015,42660.0,42659.0,1.4154262]
[1641926041818,0.00015,42660.0,42659.0,1.5531762]
[1641926042017,0.00015,42660.0,42659.0,1.0531762]
[1641926042818,0.589,42676.0,42667.0,0.02928862]
[1641926043019,0.589,42676.0,42671.0,0.05858]
[1641926043218,0.00125381,42677.0,42671.0,0.05858]
[1641926043618,0.035,42676.0,42671.0,0.05958]
[1641926044820,0.71879957,42677.0,42671.0,0.05858]
[1641926045022,0.220909,42676.0,42671.0,0.05858]
[1641926045664,0.232909,42676.0,42671.0,0.06358]
[1641926045862,0.012,42676.0,42671.0,0.06358]
[1641926046063,0.012,42676.0,42672.0,0.30835123]
[1641926046262,0.01261431,42676.0,42674.0,0.058574]
[1641926046461,0.01261431,42676.0,42675.0,0.31108333]
[1641926046862,0.00061431,42676.0,42675.0,0.73782533]
[1641926047362,0.00015,42680.0,42675.0,0.73782533]
[1641926047562,0.00061433,42678.0,42677.0,0.50856]
[1641926047764,0.00061433,42678.0,42677.0,0.80518625]
[1641926047962,0.00061433,42678.0,42677.0,0.85642462]
[1641926048362,0.00061433,42678.0,42677.0,0.91498762]
[1641926048563,0.00015,42680.0,42677.0,0.96498762]
[1641926048766,0.00076434,42680.0,42679.0,0.67797278]
[1641926049010,0.001,42686.0,42679.0,1.52030017]
[1641926049208,0.001,42686.0,42683.0,0.376742]
[1641926049410,0.001,42686.0,42684.0,1.42984598]
[1641926049609,0.0001,42685.0,42684.0,1.12984598]
[1641926049811,0.001,42686.0,42685.0,0.93153817]
[1641926050010,0.001,42686.0,42685.0,1.32223062]
[1641926050209,0.001,42686.0,42685.0,1.54188325]
[1641926050413,0.00015,42690.0,42689.0,0.0012411]
[1641926050609,0.00015,42690.0,42689.0,0.4251831]
[1641926050810,0.00015,42690.0,42689.0,0.45445385]
[1641926051011,0.00015,42690.0,42689.0,0.77116459]
[1641926051611,0.00015,42690.0,42689.0,0.84816459]
[1641926051810,0.00015,42690.0,42689.0,0.94816459]
[1641926052010,0.00015,42690.0,42689.0,1.04806459]
[1641926052410,0.00015,42690.0,42689.0,1.10660659]
[1641926052856,0.00015,42690.0,42689.0,1.07960659]
[1641926053658,0.00015,42690.0,42689.0,1.11360659]
[1641926054560,0.002,42692.0,42689.0,1.11360659]
[1641926054763,0.00260921,42692.0,42689.0,1.07960659]
[1641926055565,0.00260921,42692.0,42689.0,0.78489585]
[1641926055761,0.002,42692.0,42689.0,0.78489585]
[1641926055962,0.00260922,42692.0,42689.0,0.78489585]
[1641926056415,0.10060922,42693.0,42690.0,0.3]
[1641926056613,0.10060922,42693.0,42691.0,0.423942]
[1641926056813,0.10060922,42693.0,42692.0,0.058545]
[1641926057014,0.10060922,42693.0,42692.0,0.435287]
[1641926057713,0.10060922,42693.0,42692.0,0.456287]
[1641926058713,0.10060922,42693.0,42692.0,0.079545]
[1641926058912,0.10060922,42693.0,42692.0,0.058545]
[1641926059612,0.10060922,42693.0,42692.0,0.084545]
[1641926060966,0.10060922,42693.0,42692.0,0.058545]
[1641926061663,0.10060922,42693.0,42692.0,0.075545]
[1641926062763,0.10060922,42693.0,42692.0,0.125545]
[1641926062963,0.10060922,42693.0,42692.0,0.108545]
[1641926063163,0.50060922,42693.0,42692.0,0.108545]
[1641926063567,0.50060922,42693.0,42692.0,0.121545]
[1641926063763,0.50060922,42693.0,42692.0,0.071545]
[1641926064809,0.10060922,42693.0,42692.0,0.108545]
[1641926065609,0.10060922,42693.0,42692.0,0.122545]
[1641926066611,0.10060922,42693.0,42692.0,0.064]
[1641926066814,0.3712071,42693.0,42690.0,0.05]
[1641926067012,0.220909,42692.0,42690.0,0.05]
[1641926067213,0.3455393,42691.0,42685.0,0.0999]
[1641926067671,0.3455393,42691.0,42690.0,0.043]
[1641926068065,0.5664483,42691.0,42690.0,0.043]
[1641926068266,0.3455393,42691.0,42690.0,0.043]
[1641926068467,0.006,42692.0,42690.0,0.043]
[1641926069568,0.006,42692.0,42689.0,0.108557]
[1641926069569,0.08060922,42693.0,42689.0,0.108557]
[1641926069768,0.005,42692.0,42690.0,0.041]
[1641926070971,0.08060922,42693.0,42689.0,0.13783235]
[1641926071170,0.08060922,42693.0,42689.0,0.108557]
[1641926071616,0.27587397,42692.0,42689.0,0.037]
[1641926072518,0.220909,42691.0,42689.0,0.037]
[1641926072718,1.22843702,42690.0,42689.0,0.037]
[1641926072919,1.44934602,42690.0,42685.0,0.0999]
[1641926073119,0.220909,42689.0,42685.0,0.0999]
[1641926073318,0.46589779,42688.0,42685.0,0.0999]
[1641926073519,1.53841727,42686.0,42685.0,0.0999]
[1641926073720,1.81963627,42686.0,42685.0,0.1079]
[1641926073922,0.220909,42685.0,42678.0,0.00015]
[1641926074119,0.3362108,42684.0,42678.0,0.00015]
[1641926074320,0.27949,42683.0,42678.0,0.00015]
[1641926074720,0.49481376,42681.0,42678.0,0.00015]
[1641926074919,0.51603607,42680.0,42678.0,0.00015]
[1641926075162,0.92127755,42679.0,42678.0,0.00015]
[1641926075357,1.14218655,42679.0,42678.0,0.00015]
[1641926075757,1.15418655,42679.0,42678.0,0.00015]
[1641926076956,1.14218655,42679.0,42678.0,0.00015]
[1641926077758,1.15818655,42679.0,42678.0,0.00015]
[1641926079610,1.15718655,42679.0,42678.0,0.00015]
[1641926080412,0.50718655,42679.0,42678.0,0.00015]
[1641926081013,0.74218655,42679.0,42678.0,0.00015]
[1641926081214,0.470909,42679.0,42678.0,0.00015]
[1641926081816,0.483909,42679.0,42678.0,0.00015]
[1641926082014,0.233909,42679.0,42678.0,0.00015]
[1641926082218,0.013,42679.0,42678.0,0.00015]
[1641926082860,0.35639626,42682.0,42678.0,0.00015]
[1641926083261,0.35639626,42682.0,42680.0,0.058569]
[1641926083660,0.35639626,42682.0,42680.0,0.058719]
[1641926083661,0.39239626,42682.0,42680.0,0.058719]
[1641926083860,0.06489153,42682.0,42680.0,0.058719]
[1641926084362,0.06489153,42682.0,42680.0,0.0880002]
[1641926084561,0.06489153,42682.0,42681.0,0.117125]
[1641926084963,0.39632869,42688.0,42681.0,0.117125]
[1641926085764,0.41432869,42688.0,42681.0,0.122125]
[1641926086416,0.018,42688.0,42682.0,0.30283222]
[1641926086715,0.018,42688.0,42682.0,0.30681525]
[1641926087017,0.08060922,42693.0,42685.0,0.058558]
[1641926087215,0.32492053,42693.0,42685.0,0.058558]
[1641926087615,0.75751375,42693.0,42686.0,0.0292777]
[1641926087816,0.220909,42692.0,42684.0,0.117115]
[1641926088017,0.22796343,42692.0,42684.0,0.117115]
[1641926089815,0.29596343,42692.0,42684.0,0.117115]
[1641926091267,0.22796343,42692.0,42684.0,0.117115]
[1641926091667,0.29996343,42692.0,42684.0,0.117115]
[1641926092969,0.22796343,42692.0,42684.0,0.117115]
[1641926093669,0.22796343,42692.0,42684.0,0.17667]
[1641926093670,0.00705443,42692.0,42684.0,0.17667]
[1641926093914,0.00705443,42692.0,42685.0,0.0999]
[1641926093915,0.06205443,42692.0,42685.0,0.0999]
[1641926094716,0.055,42692.0,42686.0,0.35148183]
[1641926094921,0.055,42692.0,42688.0,0.08783346]
[1641926095116,0.08060922,42693.0,42689.0,0.3162163]
[1641926095316,0.08060922,42693.0,42689.0,0.3662163]
[1641926095717,0.11260922,42693.0,42689.0,0.3762163]
[1641926096118,0.11260922,42693.0,42690.0,0.02927221]
[1641926096518,0.11260922,42693.0,42691.0,0.058545]
[1641926097119,0.08060922,42693.0,42691.0,0.058545]
[1641926097762,0.11360922,42693.0,42691.0,0.067545]
[1641926098962,0.08060922,42693.0,42691.0,0.058545]
[1641926099863,0.11460922,42693.0,42691.0,0.066545]
[1641926100263,0.11460922,42693.0,42692.0,0.29768947]
[1641926100464,0.11460922,42693.0,42692.0,0.69643184]
[1641926100666,0.11460922,42693.0,42692.0,0.74643184]
[1641926100863,0.11460922,42693.0,42692.0,0.84363184]
[1641926101062,0.11460922,42693.0,42692.0,0.84485804]
[1641926101063,0.08060922,42693.0,42692.0,0.84485804]
[1641926101264,0.08060922,42693.0,42692.0,0.94475804]
[1641926101712,0.08060922,42693.0,42692.0,0.96275804]
[1641926102911,0.08060922,42693.0,42692.0,0.94475804]
[1641926103812,0.08060922,42693.0,42692.0,0.98275804]
[1641926104712,0.08060922,42693.0,42692.0,1.08153184]
[1641926104912,0.08060922,42693.0,42692.0,0.761842]
[1641926105168,0.08060922,42693.0,42692.0,0.723842]
[1641926105763,0.08060922,42693.0,42692.0,0.764842]
[1641926106164,0.08060922,42693.0,42692.0,1.06614651]
[1641926106563,0.08060922,42693.0,42692.0,0.96614651]
[1641926106963,0.08060922,42693.0,42692.0,0.92514651]
[1641926107164,0.003,42694.0,42693.0,1.05]
[1641926107364,0.003,42694.0,42693.0,1.473942]
[1641926107563,0.003,42694.0,42693.0,1.573942]
[1641926107764,0.004,42696.0,42694.0,0.376742]
[1641926107966,0.004,42696.0,42695.0,0.923942]
[1641926108167,0.002,42703.0,42698.0,0.376742]
[1641926108563,0.002,42703.0,42698.0,0.42798566]
[1641926108765,0.002,42703.0,42698.0,0.426742]
[1641926109213,0.26001754,42703.0,42698.0,0.43527]
[1641926109816,0.26001754,42703.0,42698.0,0.45727]
[1641926110317,0.002,42703.0,42698.0,0.45727]
[1641926110518,0.002,42703.0,42698.0,0.50727]
[1641926110814,0.002,42703.0,42699.0,1.52944512]
[1641926111015,0.002,42703.0,42699.0,1.323942]
[1641926111214,0.002,42703.0,42699.0,0.523942]
[1641926111816,0.002,42703.0,42699.0,0.541942]
[1641926112218,0.002,42703.0,42700.0,0.6]
[1641926112418,0.00260017,42702.0,42700.0,1.023942]
[1641926112672,0.00260017,42702.0,42701.0,0.45]
[1641926112867,0.00260017,42702.0,42701.0,1.19902196]
[1641926113067,0.00260017,42702.0,42701.0,0.873942]
[1641926113266,0.002,42702.0,42701.0,0.873942]
[1641926113566,0.002,42702.0,42701.0,0.423942]
[1641926113765,0.002,42702.0,42701.0,0.75393884]
[1641926113966,0.002,42702.0,42701.0,0.85393884]
[1641926115067,0.232,42702.0,42701.0,0.82793884]
[1641926115669,0.232,42702.0,42701.0,0.523942]
[1641926115867,0.232,42702.0,42701.0,0.546942]
[1641926117117,0.232,42702.0,42701.0,0.523942]
[1641926117317,0.232,42702.0,42701.0,0.623842]
[1641926117718,0.232,42702.0,42701.0,0.650842]
[1641926118321,0.232,42702.0,42701.0,0.95639455]
[1641926119120,0.232,42702.0,42701.0,0.92939455]
[1641926119820,0.232,42702.0,42701.0,0.95339455]
[1641926120969,0.232,42702.0,42701.0,0.92939455]
[1641926121572,0.00042906,42704.0,42703.0,1.576742]
[1641926121771,0.00015,42710.0,42703.0,1.623942]
[1641926121971,0.00186596,42710.0,42704.0,0.42795248]
[1641926122171,0.22980464,42720.0,42709.0,0.00120136]
[1641926122371,0.00115,42720.0,42711.0,0.0999]
[1641926122572,0.00115,42720.0,42712.0,0.38858126]
[1641926122771,0.00115,42720.0,42717.0,0.02925388]
[1641926122972,0.00115,42720.0,42718.0,0.108508]
[1641926123476,0.00115,42720.0,42718.0,0.155708]
[1641926123917,0.001,42722.0,42721.0,0.00129385]
[1641926124116,0.001,42722.0,42721.0,0.48372185]
[1641926124317,0.0025,42724.0,42722.0,0.6]
[1641926124518,0.0025,42724.0,42723.0,0.376742]
[1641926124716,0.0025,42724.0,42723.0,0.37802147]
[1641926124917,0.0025,42724.0,42723.0,0.47802147]
[1641926125519,0.00058598,42726.0,42724.0,0.3]
[1641926125719,0.00058598,42726.0,42725.0,0.482431]
[1641926126124,0.00058598,42726.0,42725.0,0.582431]
[1641926126525,0.0122607,42728.0,42725.0,0.54092]
[1641926126720,0.0122607,42728.0,42726.0,0.116991]
[1641926126721,0.0128467,42728.0,42726.0,0.116991]
[1641926126922,0.0128467,42728.0,42727.0,0.0472]
[1641926127770,0.0122607,42728.0,42727.0,0.0612]
[1641926129069,0.0122607,42728.0,42727.0,0.0472]
[1641926129876,0.2422607,42728.0,42727.0,0.0662]
[1641926130875,0.001,42729.0,42727.0,0.3662]
[1641926131075,0.001,42729.0,42728.0,0.68202087]
[1641926131277,0.001,42733.0,42729.0,1.226742]
[1641926131519,0.001,42733.0,42732.0,0.00129249]
[1641926131721,0.001,42733.0,42732.0,0.37803449]
[1641926131920,0.001,42733.0,42732.0,0.42803449]
[1641926132120,0.42,42735.0,42733.0,1.1]
[1641926132322,0.003,42743.0,42732.0,0.88515466]
[1641926132323,0.47454,42750.0,42735.0,1.2]
[1641926132521,0.47454,42750.0,42744.0,0.00120241]
[1641926132721,0.0277041,42755.0,42746.0,0.6]
[1641926132921,0.0368854,42749.0,42747.0,0.423942]
[1641926133121,0.86689713,42761.0,42749.0,0.5]
[1641926133323,0.40114194,42763.0,42750.0,0.6366]
[1641926133520,0.40114194,42763.0,42757.0,0.05121063]
[1641926133826,0.236383,42765.0,42758.0,0.0472]
[1641926134023,0.00035161,42759.0,42758.0,0.0472]
[1641926134421,0.00035161,42759.0,42758.0,0.105645]
[1641926134623,0.23314085,42765.0,42759.0,1.476742]
[1641926134823,0.23173461,42765.0,42761.0,0.116884]
[1641926135024,0.23173461,42765.0,42762.0,0.423942]
[1641926135270,0.23173461,42765.0,42762.0,0.0472]
[1641926135473,0.12683461,42765.0,42762.0,0.0472]
[1641926135871,0.79317764,42764.0,42762.0,0.0542]
[1641926136070,0.79317764,42764.0,42759.0,0.11691]
[1641926136071,1.2,42763.0,42759.0,0.11691]
[1641926136273,1.2,42763.0,42746.0,0.00128503]
[1641926136274,0.1,42760.0,42746.0,0.00128503]
[1641926136474,0.52921628,42759.0,42750.0,0.00015]
[1641926136873,0.52921628,42759.0,42743.0,0.00015]
[1641926137072,0.33945495,42753.0,42750.0,0.058473]
[1641926137474,0.30830728,42759.0,42750.0,0.058623]
[1641926137672,0.00281924,42761.0,42750.0,0.058623]
[1641926137872,0.42,42759.0,42750.0,0.076623]
[1641926138473,0.42,42759.0,42751.0,0.30830728]
[1641926138675,0.42,42759.0,42758.0,0.00129703]
[1641926138925,0.00056392,42761.0,42758.0,0.00129703]
[1641926139129,0.00056392,42761.0,42756.0,0.05120015]
[1641926139526,0.00056392,42761.0,42758.0,0.058448]
[1641926139527,0.42516566,42760.0,42758.0,0.058448]
[1641926140129,0.01330923,42767.0,42759.0,1.20127603]
[1641926140329,0.01230923,42767.0,42763.0,0.376742]
[1641926140627,0.01230923,42767.0,42766.0,0.00121482]
[1641926140827,0.01005351,42767.0,42766.0,0.00121482]
[1641926141632,0.01005351,42767.0,42765.0,0.20452245]
[1641926141830,0.01005351,42767.0,42766.0,0.017]
[1641926143081,0.01005351,42767.0,42765.0,0.25452796]
[1641926143481,0.01005351,42767.0,42765.0,0.30128196]
[1641926143881,0.01005351,42767.0,42765.0,0.31628196]
[1641926144285,0.00410861,42767.0,42766.0,0.00122844]
[1641926144583,0.00015,42770.0,42766.0,0.05966044]
[1641926144783,0.00055947,42768.0,42766.0,0.058432]
[1641926144983,0.00055947,42768.0,42767.0,0.1499]
[1641926145385,0.0304341,42772.0,42770.0,0.01929053]
[1641926145584,0.36059276,42771.0,42770.0,0.01929053]
[1641926145786,1.78150176,42771.0,42770.0,0.01929053]
[1641926146418,0.58150176,42771.0,42770.0,0.01929053]
[1641926146619,0.36059276,42771.0,42770.0,0.01929053]
[1641926146824,0.001,42771.0,42770.0,0.01929053]
[1641926147423,0.001,42771.0,42770.0,0.39603253]
[1641926147727,0.0210714,42777.0,42770.0,0.39603253]
[1641926147728,0.2004,42793.0,42778.0,0.00123293]
[1641926147924,0.000222,42790.0,42786.0,0.0012227]
[1641926148125,0.675,42787.0,42786.0,0.07455]
[1641926148325,0.675,42787.0,42786.0,0.12455]
[1641926149125,0.97530024,42787.0,42786.0,0.13296]
[1641926149330,0.675,42787.0,42784.0,0.04840703]
[1641926149727,0.675,42787.0,42784.0,0.00120703]
[1641926149925,0.665,42787.0,42784.0,0.003]
[1641926150571,0.895,42787.0,42785.0,0.05842]
[1641926150971,0.895,42787.0,42784.0,0.003]
[1641926151170,0.895,42787.0,42783.0,0.116842]
[1641926151369,0.895,42787.0,42783.0,0.166842]
[1641926151570,0.665,42787.0,42783.0,0.116842]
[1641926151769,1.420909,42786.0,42779.0,0.0472]
[1641926151973,1.420909,42786.0,42783.0,0.006]
[1641926151974,0.30030024,42785.0,42783.0,0.006]
[1641926152170,1.020909,42784.0,42783.0,0.006]
[1641926152770,1.75683081,42784.0,42783.0,0.006]
[1641926153172,1.75683081,42784.0,42777.0,0.158334]
[1641926153173,1.75683081,42784.0,42777.0,0.10074342]
[1641926153372,0.00124574,42783.0,42777.0,0.10074342]
[1641926153572,0.1,42781.0,42777.0,0.10074342]
[1641926153922,0.1,42781.0,42777.0,0.12774342]
[1641926153923,0.00126127,42778.0,42777.0,0.12774342]
[1641926154117,1.42217027,42778.0,42777.0,0.1269]
[1641926154317,1.42217027,42778.0,42777.0,0.12774339]
[1641926154519,1.75161653,42778.0,42777.0,0.12774339]
[1641926155317,1.75161653,42778.0,42777.0,0.0999]
[1641926155916,1.76961653,42778.0,42777.0,0.0999]
[1641926157120,0.55161653,42778.0,42777.0,0.0999]
[1641926157318,0.22217027,42778.0,42777.0,0.0999]
[1641926157787,0.42383898,42784.0,42777.0,0.0999]
[1641926157788,0.665,42787.0,42784.0,0.00121335]
[1641926157975,0.665,42787.0,42786.0,0.80112697]
[1641926158175,0.665,42787.0,42786.0,0.74835976]
[1641926158377,0.197791,42787.0,42786.0,1.61991622]
[1641926158576,0.197791,42787.0,42786.0,1.78966637]
[1641926158776,0.197791,42787.0,42786.0,0.82153676]
[1641926158976,0.197791,42787.0,42786.0,0.77433676]
[1641926159176,0.197791,42787.0,42786.0,0.77153676]
[1641926159681,0.197791,42787.0,42786.0,0.67153676]
[1641926159875,0.197791,42787.0,42786.0,0.69053676]
[1641926160279,0.00053691,42789.0,42787.0,0.5]
[1641926160476,0.00053691,42789.0,42788.0,0.481732]
[1641926160675,0.00053691,42789.0,42788.0,0.581632]
[1641926160876,0.00053691,42789.0,42788.0,0.731632]
[1641926161075,0.00015,42790.0,42789.0,0.4]
[1641926161276,0.00015,42790.0,42789.0,0.823327]
[1641926161521,0.05128193,42800.0,42790.0,0.376127]
[1641926161522,0.0331414,42800.0,42790.0,0.376127]
[1641926161721,0.0331414,42800.0,42795.0,0.058408]
[1641926161922,0.0331414,42800.0,42796.0,0.0472]
[1641926162325,0.0331414,42800.0,42799.0,0.37734353]
[1641926162522,0.34715837,42803.0,42799.0,0.42454353]
[1641926162721,0.34715837,42803.0,42800.0,0.058393]
[1641926162921,0.003775,42804.0,42801.0,0.418327]
[1641926163123,0.00018729,42805.0,42802.0,0.0472]
[1641926163322,0.00018729,42805.0,42803.0,0.375377]
[1641926163524,0.00018729,42805.0,42804.0,0.0472]
[1641926163723,0.00018729,42805.0,42804.0,0.422947]
[1641926163923,0.00018729,42805.0,42804.0,0.422567]
[1641926164122,0.00018729,42805.0,42804.0,0.04606]
[1641926164323,0.00018729,42805.0,42804.0,0.04568]
[1641926164524,0.00115,42810.0,42804.0,0.04568]
[1641926164727,0.00115,42810.0,42805.0,0.375899]
[1641926164929,0.00115,42810.0,42806.0,0.0472]
[1641926165167,0.00053279,42809.0,42807.0,0.434291]
[1641926165369,0.00053279,42809.0,42808.0,0.0472]
[1641926165568,0.00053279,42809.0,42808.0,0.423099]
[1641926165968,0.00053279,42809.0,42808.0,0.436099]
[1641926166170,0.00115,42810.0,42808.0,0.436099]
[1641926166473,1.25,42809.0,42788.0,0.0999]
[1641926166669,0.31606501,42798.0,42791.0,0.0472]
[1641926166871,0.00115,42810.0,42803.0,0.001252]
[1641926167070,0.00115,42810.0,42804.0,0.0472]
[1641926167574,0.00053279,42809.0,42807.0,0.116776]
[1641926168170,0.00053279,42809.0,42808.0,0.375899]
[1641926168569,0.00915,42810.0,42806.0,0.158297]
[1641926169221,1.16065904,42807.0,42806.0,0.158297]
[1641926169623,0.00115,42810.0,42806.0,0.158297]
[1641926169823,0.00115,42810.0,42809.0,0.158292]
[1641926170024,0.95115,42810.0,42809.0,0.0999]
[1641926170624,1.24801989,42810.0,42809.0,0.0999]
[1641926170825,2.15553011,42810.0,42809.0,0.0999]
[1641926171824,0.00115,42810.0,42809.0,0.0999]
[1641926172024,0.51515,42810.0,42809.0,0.0999]
[1641926172224,0.80727026,42810.0,42809.0,0.0999]
[1641926172423,0.86567626,42810.0,42801.0,0.058404]
[1641926172674,0.058405,42806.0,42801.0,0.058404]
[1641926172879,0.76607105,42802.0,42801.0,0.058404]
[1641926173077,0.41607105,42802.0,42801.0,0.058404]
[1641926173876,0.41607105,42802.0,42801.0,0.104404]
[1641926174076,0.76607105,42802.0,42801.0,0.104404]
[1641926174280,0.00045488,42804.0,42801.0,0.1056704]
[1641926174478,0.00296925,42810.0,42801.0,0.1056704]
[1641926174479,0.00115,42810.0,42802.0,0.375899]
[1641926174678,0.00115,42810.0,42801.0,0.104405]